[Event "DVM U10 2024"]
[Site "Duesseldorf"]
[Date "2024.12.28"]
[Round "6"]
[White "Brakhane, Justus"]
[Black "Jöhnke, Thore"]
[Result "1/2-1/2"]
[ECO "C47"]
[WhiteElo "1068"]
[BlackElo "861"]
[Annotator "NA RC"]
[PlyCount "138"]
[EventDate "2024.12.23"]
[EventType "team-tourn"]
[EventRounds "7"]
[EventCountry "GER"]
[SourceTitle "playchess.com"]
[Source "ChessBase"]
[SourceQuality "1"]
[TimeControl "3300+5"]

1. e4 {[%emt 0:00:02]} e5 {[%emt 0:00:05]} 2. Nf3 {[%emt 0:00:06]} Nc6 {[%emt 0:00:06]} 3. d4 {[%emt 0:00:09]} exd4 {[%emt 0:00:08]} 4. Nxd4 {[%emt 0:00:20]} Nf6 {[%emt 0:00:28]} 5. Nc3 {[%emt 0:00:08]} Bc5 {[%emt 0:00:07]} 6. Be3 {[%emt 0:00:10]} Nxd4 {[%emt 0:00:27]} 7. Bxd4 {[%emt 0:00:16]} Bxd4 {[%emt 0:00:14]} 8. Qxd4 {[%emt 0:00:10]} O-O {[%emt 0:00:10]} 9. Bc4 {[%emt 0:00:07]} d6 {[%emt 0:00:11]} 10. O-O-O {[%emt 0:00:53]} Be6 {[%emt 0:00:32]} 11. Bxe6 {[%emt 0:00:22]} fxe6 {[%emt 0:00:04]} 12. f3 {[%emt 0:00:20]} e5 {[%emt 0:00:08]} 13. Qd2 {[%emt 0:00:13]} a5 {[%emt 0:00:24]} 14. g4 {[%emt 0:00:12]} a4 {[%emt 0:00:12]} 15. h4 {[%emt 0:00:07]} a3 {[%emt 0:00:11]} 16. b3 {[%emt 0:00:04]} c5 {[%emt 0:00:26]} 17. Qd3 {[%emt 0:01:04]} Qc7 {[%emt 0:00:26]} 18. h5 {[%emt 0:00:13]} c4 {[%emt 0:00:23]} 19. Qxc4+ {[%emt 0:00:09]} Qxc4 {[%emt 0:00:07]} 20. bxc4 {[%emt 0:00:08]} Rfc8 {[%emt 0:00:23]} 21. g5 {[%emt 0:00:20]} Ne8 {[%emt 0:00:28]} 22. Nb5 {[%emt 0:00:12]} Rxc4 {[%emt 0:00:30]} 23. Nxd6 {[%emt 0:00:13]} Nxd6 {[%emt 0:00:26]} 24. Rxd6 {[%emt 0:00:15]} Rac8 {[%emt 0:00:24]} 25. Rh2 {[%emt 0:00:13]} Rb4 {[%emt 0:00:13]} 26. Rd3 {[%emt 0:02:05]} Ra4 {[%emt 0:00:32]} 27. Re2 {[%emt 0:01:25]} Rf8 {[%emt 0:00:58]} 28. Ree3 {[%emt 0:00:09]} Rfa8 {[%emt 0:00:07]} 29. Rd5 {[%emt 0:00:56]} Rb8 {[%emt 0:00:48]} 30. Rxe5 {[%emt 0:00:19]} b5 {[%emt 0:00:16]} 31. Rb3 {[%emt 0:01:01]} b4 {[%emt 0:00:20]} 32. c3 {[%emt 0:00:41]} Kf8 {[%emt 0:00:58]} 33. cxb4 {[%emt 0:00:13]} Raxb4 {[%emt 0:00:20]} 34. Rxb4 {[%emt 0:00:16]} Rxb4 {[%emt 0:00:07]} 35. Kc2 {[%emt 0:00:09]} Rb2+ {[%emt 0:00:14]} 36. Kc3 {[%emt 0:00:16]} Kf7 {[%emt 0:00:13]} 37. Ra5 {[%emt 0:00:47]} Rxa2 {[%emt 0:00:14]} 38. Kb3 {[%emt 0:00:10]} Rb2+ {[%emt 0:00:25]} 39. Kxa3 {[%emt 0:00:07]} Rf2 {[%emt 0:00:11]} 40. Rf5+ {[%emt 0:00:10]} Ke6 {[%emt 0:00:12]} 41. Kb4 {[%emt 0:00:03]} Re2 {[%emt 0:00:45]} 42. Ra5 {[%emt 0:00:23]} Rf2 {[%emt 0:00:23]} 43. Rf5 {[%emt 0:00:14]} Re2 {[%emt 0:00:11]} 44. Rf8 {[%emt 0:01:12]} Ke7 {[%emt 0:00:18]} 45. Rf4 {[%emt 0:01:17]} Ke6 {[%emt 0:00:11]} 46. Kc4 {[%emt 0:00:08]} Rc2+ {[%emt 0:00:17]} 47. Kd3 {[%emt 0:00:12]} Ra2 {[%emt 0:00:11]} 48. Kd4 {[%emt 0:00:48]} Ra4+ {[%emt 0:00:14]} 49. Ke3 {[%emt 0:00:10]} Ra3+ {[%emt 0:00:09]} 50. Kf2 {[%emt 0:00:08]} Ra2+ {[%emt 0:00:09]} 51. Kg3 {[%emt 0:00:16]} Ra1 {[%emt 0:00:20]} 52. h6 {[%emt 0:00:57]} gxh6 {[%emt 0:00:21]} 53. gxh6 {[%emt 0:00:06]} Rh1 {[%emt 0:00:16]} 54. Rh4 {[%emt 0:00:08]} Rg1+ {[%emt 0:00:10]} 55. Kf2 {[%emt 0:00:57]} Rc1 {[%emt 0:00:19]} 56. Rg4 {[%emt 0:00:27]} Rc2+ {[%emt 0:00:22]} 57. Ke3 {[%emt 0:00:27]} Rc3+ {[%emt 0:00:16]} 58. Kd4 {[%emt 0:00:21]} Ra3 {[%emt 0:00:09]} 59. Rg7 {[%emt 0:00:08]} Ra4+ {[%emt 0:00:21]} 60. Ke3 {[%emt 0:00:21]} Ra3+ {[%emt 0:00:11]} 61. Kf4 {[%emt 0:00:07]} Kf6 {[%emt 0:00:27]} 62. Rxh7 {[%emt 0:00:12]} Kg6 {[%emt 0:00:20]} 63. Re7 {[%emt 0:00:15]} Kxh6 {[%emt 0:00:08]} 64. Rf7 {[%emt 0:00:16]} Ra6 {[%emt 0:00:44]} 65. e5 {[%emt 0:00:24]} Kg6 {[%emt 0:00:05]} 66. Rf6+ {[%emt 0:00:15]} Rxf6+ {[%emt 0:00:11]} 67. exf6 {[%emt 0:00:10]} Kxf6 {[%emt 0:00:08]} 68. Kg4 {[%emt 0:00:06]} Kg6 {[%emt 0:00:16]} 69. f4 {[%emt 0:00:10]} Kf6 {[%emt 0:01:01]} 1/2-1/2

[Event "DVM U10 2024"]
[Site "Duesseldorf"]
[Date "2024.12.28"]
[Round "6"]
[White "Saloum, Michael"]
[Black "Gerigk, Maximilian"]
[Result "1-0"]
[ECO "C42"]
[WhiteElo "1067"]
[BlackElo "823"]
[Annotator "NA RC"]
[PlyCount "113"]
[EventDate "2024.12.23"]
[EventType "team-tourn"]
[EventRounds "7"]
[EventCountry "GER"]
[SourceTitle "playchess.com"]
[Source "ChessBase"]
[SourceQuality "1"]
[TimeControl "3300+5"]

1. e4 {[%emt 0:00:02]} e5 {[%emt 0:00:09]} 2. Nf3 {[%emt 0:00:12]} Nc6 {[%emt 0:00:14]} 3. Nc3 {[%emt 0:00:31]} Nf6 {[%emt 0:00:42]} 4. Bc4 {[%emt 0:00:16]} Bb4 {[%emt 0:00:24]} 5. O-O {[%emt 0:00:09]} O-O {[%emt 0:00:25]} 6. Re1 {[%emt 0:00:27]} d6 {[%emt 0:00:44]} 7. a3 {[%emt 0:04:30]} Bxc3 {[%emt 0:00:46]} 8. dxc3 {[%emt 0:00:02]} Be6 {[%emt 0:00:17]} 9. Bxe6 {[%emt 0:06:47]} fxe6 {[%emt 0:00:10]} 10. Bg5 {[%emt 0:01:04]} Qd7 {[%emt 0:00:37]} 11. b3 {[%emt 0:05:48]} h6 {[%emt 0:00:34]} 12. Bxf6 {[%emt 0:00:32]} Rxf6 {[%emt 0:00:50]} 13. c4 {[%emt 0:00:20]} Qe7 {[%emt 0:01:02]} 14. b4 {[%emt 0:04:16]} Rd8 {[%emt 0:00:34]} 15. c3 {[%emt 0:01:02]} Qf7 {[%emt 0:01:08]} 16. a4 {[%emt 0:00:09]} a6 {[%emt 0:01:06]} 17. b5 {[%emt 0:00:17]} axb5 {[%emt 0:00:50]} 18. cxb5 {[%emt 0:00:00]} Ne7 {[%emt 0:00:19]} 19. Nxe5 {[%emt 0:01:06]} Qf8 {[%emt 0:00:49]} 20. Nf3 {[%emt 0:00:13]} d5 {[%emt 0:00:38]} 21. Qd4 {[%emt 0:03:57]} Rf4 {[%emt 0:01:36]} 22. Qe5 {[%emt 0:00:39]} Ng6 {[%emt 0:01:16]} 23. Qxe6+ {[%emt 0:00:42]} Qf7 {[%emt 0:00:32]} 24. Qxf7+ {[%emt 0:01:08]} Rxf7 {[%emt 0:00:30]} 25. exd5 {[%emt 0:00:20]} Rxd5 {[%emt 0:00:22]} 26. c4 {[%emt 0:00:36]} Rc5 {[%emt 0:01:47]} 27. Nd2 {[%emt 0:01:28]} Rg5 {[%emt 0:02:54]} 28. Ne4 {[%emt 0:00:30]} Re5 {[%emt 0:01:21]} 29. c5 {[%emt 0:00:15]} Rfe7 {[%emt 0:01:05]} 30. f3 {[%emt 0:00:05]} Kf8 {[%emt 0:00:51]} 31. Rad1 {[%emt 0:01:19]} Ke8 {[%emt 0:00:33]} 32. a5 {[%emt 0:00:32]} Rd7 {[%emt 0:00:17]} 33. a6 {[%emt 0:01:12]} bxa6 {[%emt 0:00:16]} 34. bxa6 {[%emt 0:00:11]} Rxd1 {[%emt 0:00:47]} 35. Rxd1 {[%emt 0:00:25]} Re7 {[%emt 0:00:09]} 36. a7 {[%emt 0:00:15]} Kf8 {[%emt 0:01:08]} 37. a8=Q+ {[%emt 0:00:00]} Re8 {[%emt 0:00:14]} 38. Rd8 {[%emt 0:00:05]} Rxd8 {[%emt 0:00:16]} 39. Qxd8+ {[%emt 0:00:16]} Kf7 {[%emt 0:00:16]} 40. Qxc7+ {[%emt 0:00:15]} Ke6 {[%emt 0:00:05]} 41. Qd6+ {[%emt 0:00:59]} Kf5 {[%emt 0:00:23]} 42. Qd5+ {[%emt 0:00:19]} Kf4 {[%emt 0:00:45]} 43. Qf7+ {[%emt 0:00:15]} Ke5 {[%emt 0:00:29]} 44. Qxg6 {[%emt 0:00:06]} Kd5 {[%emt 0:00:24]} 45. Qf5+ {[%emt 0:01:23]} Kc6 {[%emt 0:00:29]} 46. Qc8+ {[%emt 0:00:11]} Kd5 {[%emt 0:00:22]} 47. Qc7 {[%emt 0:00:17]} g6 {[%emt 0:01:03]} 48. c6 {[%emt 0:00:00]} h5 {[%emt 0:00:16]} 49. Qa5+ {[%emt 0:00:18]} Kxc6 {[%emt 0:00:48]} 50. Qc5+ {[%emt 0:00:00]} Kd7 {[%emt 0:00:12]} 51. Qd6+ {[%emt 0:00:14]} Ke8 {[%emt 0:01:00]} 52. Kf2 {[%emt 0:01:33]} Kf7 {[%emt 0:00:55]} 53. Ke3 {[%emt 0:00:00]} Kg7 {[%emt 0:00:25]} 54. Qd7+ {[%emt 0:00:17]} Kh6 {[%emt 0:00:16]} 55. Kf4 {[%emt 0:00:39]} g5+ {[%emt 0:00:31]} 56. Nxg5 {[%emt 0:00:09]} Kg6 {[%emt 0:00:12]} 57. Qf7+ {[%emt 0:00:14]} 1-0

[Event "DVM U10 2024"]
[Site "Duesseldorf"]
[Date "2024.12.28"]
[Round "6"]
[White "Fredrich, Tarje"]
[Black "Schacht, Jakob Otto"]
[Result "0-1"]
[ECO "B02"]
[WhiteElo "1056"]
[BlackElo "1064"]
[Annotator "NA RC"]
[PlyCount "88"]
[EventDate "2024.12.23"]
[EventType "team-tourn"]
[EventRounds "7"]
[EventCountry "GER"]
[SourceTitle "playchess.com"]
[Source "ChessBase"]
[SourceQuality "1"]
[TimeControl "3300+5"]

1. e4 {[%emt 0:00:05]} d5 {[%emt 0:00:05]} 2. exd5 {[%emt 0:00:15]} Nf6 {[%emt 0:00:07]} 3. Nc3 {[%emt 0:00:15]} Nxd5 {[%emt 0:00:02]} 4. Bb5+ {[%emt 0:00:19]} c6 {[%emt 0:00:36]} 5. Nxd5 {[%emt 0:00:08]} Qxd5 {[%emt 0:00:12]} 6. c4 {[%emt 0:00:14]} Qxg2 {[%emt 0:00:14]} 7. Qf3 {[%emt 0:00:10]} Qxf3 {[%emt 0:00:17]} 8. Nxf3 {[%emt 0:01:13]} cxb5 {[%emt 0:00:00]} 9. cxb5 {[%emt 0:00:08]} Bf5 {[%emt 0:00:39]} 10. d4 {[%emt 0:01:05]} Be4 {[%emt 0:00:00]} 11. Ke2 {[%emt 0:00:21]} e6 {[%emt 0:00:06]} 12. Rd1 {[%emt 0:00:16]} Bxf3+ {[%emt 0:00:24]} 13. Kxf3 {[%emt 0:00:10]} Bd6 {[%emt 0:00:11]} 14. d5 {[%emt 0:01:33]} exd5 {[%emt 0:00:20]} 15. Rxd5 {[%emt 0:00:07]} Bxh2 {[%emt 0:00:31]} 16. Bg5 {[%emt 0:00:55]} O-O {[%emt 0:00:21]} 17. Be7 {[%emt 0:01:01]} Re8 {[%emt 0:00:48]} 18. Kg2 {[%emt 0:00:21]} Bc7 {[%emt 0:00:48]} 19. Rd7 {[%emt 0:01:09]} Nxd7 {[%emt 0:00:00]} 20. Bd8 {[%emt 0:00:33]} Rexd8 {[%emt 0:00:00]} 21. Rd1 {[%emt 0:00:11]} Nf6 {[%emt 0:00:13]} 22. Rxd8+ {[%emt 0:00:07]} Rxd8 {[%emt 0:00:08]} 23. b6 {[%emt 0:00:45]} Bxb6 {[%emt 0:00:00]} 24. Kh1 {[%emt 0:00:09]} Bxf2 {[%emt 0:00:25]} 25. Kg2 {[%emt 0:00:03]} Bb6 {[%emt 0:00:22]} 26. a4 {[%emt 0:00:09]} Rd2+ {[%emt 0:00:31]} 27. Kg3 {[%emt 0:01:54]} Rxb2 {[%emt 0:00:00]} 28. a5 {[%emt 0:00:10]} Bxa5 {[%emt 0:00:00]} 29. Kh3 {[%emt 0:00:51]} Re2 {[%emt 0:00:04]} 30. Kg3 {[%emt 0:00:22]} Re1 {[%emt 0:00:38]} 31. Kf2 {[%emt 0:00:08]} Bd2 {[%emt 0:00:19]} 32. Kg2 {[%emt 0:01:02]} b5 {[%emt 0:00:00]} 33. Kf2 {[%emt 0:00:08]} b4 {[%emt 0:00:00]} 34. Kg2 {[%emt 0:00:09]} b3 {[%emt 0:00:00]} 35. Kf2 {[%emt 0:00:13]} Re3 {[%emt 0:00:00]} 36. Kg2 {[%emt 0:00:16]} b2 {[%emt 0:00:07]} 37. Kh2 {[%emt 0:00:27]} b1=Q {[%emt 0:00:07]} 38. Kg2 {[%emt 0:00:08]} Qg6+ {[%emt 0:00:25]} 39. Kf1 {[%emt 0:00:56]} Qf5+ {[%emt 0:00:00]} 40. Kg2 {[%emt 0:00:10]} Qg4+ {[%emt 0:00:15]} 41. Kf2 {[%emt 0:00:20]} Qf3+ {[%emt 0:00:20]} 42. Kg1 {[%emt 0:00:13]} Re1+ {[%emt 0:00:40]} 43. Kh2 {[%emt 0:01:47]} Re2+ {[%emt 0:00:00]} 44. Kg1 {[%emt 0:00:20]} Qg2# {[%emt 0:00:00]} 0-1

[Event "DVM U10 2024"]
[Site "Duesseldorf"]
[Date "2024.12.28"]
[Round "6"]
[White "Hornych, Fridtjof"]
[Black "Roppel, Alexander"]
[Result "1-0"]
[ECO "C50"]
[WhiteElo "1053"]
[BlackElo "954"]
[Annotator "NA RC"]
[PlyCount "53"]
[EventDate "2024.12.23"]
[EventType "team-tourn"]
[EventRounds "7"]
[EventCountry "GER"]
[SourceTitle "playchess.com"]
[Source "ChessBase"]
[SourceQuality "1"]
[TimeControl "3300+5"]

1. e4 {[%emt 0:00:01]} e5 {[%emt 0:00:01]} 2. Nf3 {[%emt 0:00:06]} Nf6 {[%emt 0:00:05]} 3. Nc3 {[%emt 0:00:12]} Bc5 {[%emt 0:00:09]} 4. Bc4 {[%emt 0:00:10]} Nc6 {[%emt 0:00:09]} 5. O-O {[%emt 0:00:08]} d6 {[%emt 0:00:07]} 6. d3 {[%emt 0:00:08]} h6 {[%emt 0:00:04]} 7. Qe2 {[%emt 0:00:08]} Bg4 {[%emt 0:00:11]} 8. Be3 {[%emt 0:00:29]} Nh5 {[%emt 0:00:38]} 9. h3 {[%emt 0:00:49]} Nf4 {[%emt 0:00:19]} 10. Bxf4 {[%emt 0:02:16]} Bxf3 {[%emt 0:00:11]} 11. Qxf3 {[%emt 0:00:09]} Nd4 {[%emt 0:00:12]} 12. Qg3 {[%emt 0:00:28]} exf4 {[%emt 0:00:38]} 13. Qxg7 {[%emt 0:00:13]} Rf8 {[%emt 0:00:17]} 14. Rfe1 {[%emt 0:00:41]} Nxc2 {[%emt 0:00:50]} 15. e5 {[%emt 0:00:23]} Nxe1 {[%emt 0:00:35]} 16. Rxe1 {[%emt 0:00:04]} Kd7 {[%emt 0:01:31]} 17. Nd5 {[%emt 0:00:25]} Kc8 {[%emt 0:00:57]} 18. e6 {[%emt 0:00:49]} Qe8 {[%emt 0:02:16]} 19. Nf6 {[%emt 0:00:35]} Qe7 {[%emt 0:00:29]} 20. Nd5 {[%emt 0:00:44]} Qe8 {[%emt 0:00:19]} 21. Kf1 {[%emt 0:00:45]} c6 {[%emt 0:00:37]} 22. exf7 {[%emt 0:00:30]} Qd8 {[%emt 0:00:34]} 23. Re8 {[%emt 0:00:26]} Rxe8 {[%emt 0:00:20]} 24. fxe8=Q {[%emt 0:00:22]} Bb6 {[%emt 0:02:16]} 25. Qgd7+ {[%emt 0:00:27]} Kb8 {[%emt 0:01:03]} 26. Qexd8+ {[%emt 0:00:10]} Bxd8 {[%emt 0:00:12]} 27. Qxd8# {[%emt 0:00:09]} 1-0

[Event "DVM U10 2024"]
[Site "Duesseldorf"]
[Date "2024.12.28"]
[Round "6"]
[White "Mettenbrink, Tammo"]
[Black "Chen, Aimée"]
[Result "0-1"]
[ECO "C50"]
[WhiteElo "1029"]
[BlackElo "1090"]
[Annotator "NA RC"]
[PlyCount "122"]
[EventDate "2024.12.23"]
[EventType "team-tourn"]
[EventRounds "7"]
[EventCountry "GER"]
[SourceTitle "playchess.com"]
[Source "ChessBase"]
[SourceQuality "1"]
[TimeControl "3300+5"]

1. e4 {[%emt 0:00:01]} e5 {[%emt 0:00:00]} 2. Nf3 {[%emt 0:00:06]} Nc6 {[%emt 0:00:08]} 3. Bc4 {[%emt 0:00:10]} Bc5 {[%emt 0:00:14]} 4. Nc3 {[%emt 0:00:13]} Nf6 {[%emt 0:00:13]} 5. d3 {[%emt 0:00:21]} h6 {[%emt 0:00:07]} 6. Bb5 {[%emt 0:00:32]} d6 {[%emt 0:00:16]} 7. O-O {[%emt 0:00:08]} O-O {[%emt 0:00:30]} 8. h3 {[%emt 0:00:15]} Be6 {[%emt 0:00:18]} 9. Ba4 {[%emt 0:00:33]} Ne7 {[%emt 0:01:00]} 10. Bb3 {[%emt 0:00:22]} Ng6 {[%emt 0:00:46]} 11. Bxe6 {[%emt 0:00:21]} fxe6 {[%emt 0:00:08]} 12. Bd2 {[%emt 0:01:27]} d5 {[%emt 0:00:20]} 13. Qc1 {[%emt 0:00:23]} Qe7 {[%emt 0:02:05]} 14. exd5 {[%emt 0:00:50]} exd5 {[%emt 0:00:12]} 15. Re1 {[%emt 0:00:21]} Rae8 {[%emt 0:02:08]} 16. Re2 {[%emt 0:00:38]} c6 {[%emt 0:00:39]} 17. Qe1 {[%emt 0:00:18]} Qc7 {[%emt 0:02:01]} 18. Be3 {[%emt 0:00:45]} Bxe3 {[%emt 0:03:32]} 19. Rxe3 {[%emt 0:00:09]} d4 {[%emt 0:00:37]} 20. Re2 {[%emt 0:00:12]} dxc3 {[%emt 0:00:11]} 21. Qxc3 {[%emt 0:00:16]} Nd5 {[%emt 0:00:58]} 22. Qb3 {[%emt 0:00:38]} Qf7 {[%emt 0:01:58]} 23. Rae1 {[%emt 0:00:26]} Ndf4 {[%emt 0:03:21]} 24. Qxf7+ {[%emt 0:00:35]} Rxf7 {[%emt 0:00:11]} 25. Re4 {[%emt 0:00:52]} Rfe7 {[%emt 0:00:26]} 26. g3 {[%emt 0:01:26]} Nxh3+ {[%emt 0:00:26]} 27. Kh2 {[%emt 0:00:23]} Nxf2 {[%emt 0:00:16]} 28. R4e2 {[%emt 0:00:23]} Ng4+ {[%emt 0:00:34]} 29. Kh3 {[%emt 0:00:12]} Nf6 {[%emt 0:00:43]} 30. g4 {[%emt 0:00:47]} Nf4+ {[%emt 0:00:09]} 31. Kg3 {[%emt 0:00:19]} Nxe2+ {[%emt 0:00:11]} 32. Rxe2 {[%emt 0:00:07]} e4 {[%emt 0:00:30]} 33. dxe4 {[%emt 0:00:15]} Rxe4 {[%emt 0:00:07]} 34. Rd2 {[%emt 0:00:16]} Rxg4+ {[%emt 0:00:18]} 35. Kf2 {[%emt 0:00:18]} Ne4+ {[%emt 0:00:08]} 36. Kf1 {[%emt 0:00:32]} Nxd2+ {[%emt 0:00:08]} 37. Nxd2 {[%emt 0:00:13]} Rf4+ {[%emt 0:00:09]} 38. Kg2 {[%emt 0:00:14]} Re2+ {[%emt 0:00:13]} 39. Kg3 {[%emt 0:00:15]} Rxd2 {[%emt 0:00:19]} 40. Kxf4 {[%emt 0:00:10]} Rxc2 {[%emt 0:00:05]} 41. Ke5 {[%emt 0:00:10]} h5 {[%emt 0:00:08]} 42. Kf4 {[%emt 0:00:11]} Rg2 {[%emt 0:00:11]} 43. Kf3 {[%emt 0:00:11]} Rxb2 {[%emt 0:00:15]} 44. Kg3 {[%emt 0:00:12]} c5 {[%emt 0:00:09]} 45. Kh4 {[%emt 0:00:13]} c4 {[%emt 0:00:07]} 46. Kxh5 {[%emt 0:00:08]} c3 {[%emt 0:00:17]} 47. Kg4 {[%emt 0:00:06]} c2 {[%emt 0:00:07]} 48. Kf4 {[%emt 0:00:06]} c1=Q+ {[%emt 0:00:09]} 49. Ke5 {[%emt 0:00:19]} Qe3+ {[%emt 0:00:17]} 50. Kd5 {[%emt 0:00:10]} Rd2+ {[%emt 0:00:09]} 51. Kc4 {[%emt 0:00:08]} Qd3+ {[%emt 0:00:08]} 52. Kb4 {[%emt 0:00:26]} a5+ {[%emt 0:00:08]} 53. Kxa5 {[%emt 0:00:12]} b6+ {[%emt 0:00:16]} 54. Kxb6 {[%emt 0:00:08]} Qd5 {[%emt 0:00:09]} 55. a4 {[%emt 0:00:17]} Ra2 {[%emt 0:00:09]} 56. Kc7 {[%emt 0:00:10]} Rc2+ {[%emt 0:00:16]} 57. Kb6 {[%emt 0:00:08]} Qb3+ {[%emt 0:00:13]} 58. Ka5 {[%emt 0:00:18]} Rc5+ {[%emt 0:00:10]} 59. Ka6 {[%emt 0:00:18]} Qxa4+ {[%emt 0:00:06]} 60. Kb7 {[%emt 0:00:26]} Qb4+ {[%emt 0:00:09]} 61. Ka6 {[%emt 0:00:34]} Ra5# {[%emt 0:00:04]} 0-1

[Event "DVM U10 2024"]
[Site "Duesseldorf"]
[Date "2024.12.28"]
[Round "6"]
[White "Pahl, Eirik"]
[Black "Tschötsch, Hugo"]
[Result "1/2-1/2"]
[ECO "A45"]
[WhiteElo "1010"]
[BlackElo "1110"]
[Annotator "NA RC"]
[PlyCount "71"]
[EventDate "2024.12.23"]
[EventType "team-tourn"]
[EventRounds "7"]
[EventCountry "GER"]
[SourceTitle "playchess.com"]
[Source "ChessBase"]
[SourceQuality "1"]
[TimeControl "3300+5"]

1. d4 {[%emt 0:00:03]} Nf6 {[%emt 0:00:04]} 2. Nc3 {[%emt 0:00:54]} e6 {[%emt 0:00:11]} 3. e4 {[%emt 0:00:48]} Bb4 {[%emt 0:00:07]} 4. e5 {[%emt 0:02:33]} Nd5 {[%emt 0:00:38]} 5. Bd2 {[%emt 0:02:27]} Bxc3 {[%emt 0:00:08]} 6. bxc3 {[%emt 0:02:22]} O-O {[%emt 0:01:39]} 7. c4 {[%emt 0:03:47]} Ne7 {[%emt 0:00:15]} 8. Bf4 {[%emt 0:01:58]} b6 {[%emt 0:00:48]} 9. d5 {[%emt 0:00:46]} Ba6 {[%emt 0:04:46]} 10. Nf3 {[%emt 0:01:14]} h6 {[%emt 0:02:20]} 11. Be2 {[%emt 0:01:28]} Bb7 {[%emt 0:01:49]} 12. d6 {[%emt 0:01:58]} Nec6 {[%emt 0:00:19]} 13. O-O {[%emt 0:02:28]} Na5 {[%emt 0:01:32]} 14. Qd4 {[%emt 0:08:16]} Nbc6 {[%emt 0:01:18]} 15. Qc3 {[%emt 0:01:09]} Rc8 {[%emt 0:01:52]} 16. c5 {[%emt 0:00:44]} bxc5 {[%emt 0:00:48]} 17. Qxc5 {[%emt 0:00:27]} cxd6 {[%emt 0:00:38]} 18. exd6 {[%emt 0:00:39]} Ba8 {[%emt 0:02:33]} 19. Rab1 {[%emt 0:01:14]} Rb8 {[%emt 0:01:35]} 20. Rxb8 {[%emt 0:00:31]} Qxb8 {[%emt 0:00:17]} 21. Bd2 {[%emt 0:00:13]} Nb7 {[%emt 0:00:13]} 22. Qc4 {[%emt 0:01:50]} Nxd6 {[%emt 0:00:32]} 23. Qg4 {[%emt 0:00:48]} Nf5 {[%emt 0:00:30]} 24. Bd3 {[%emt 0:00:29]} Nce7 {[%emt 0:00:16]} 25. Nh4 {[%emt 0:01:05]} Ng6 {[%emt 0:03:16]} 26. Nxf5 {[%emt 0:00:28]} exf5 {[%emt 0:00:11]} 27. Bxf5 {[%emt 0:00:10]} Qd6 {[%emt 0:01:15]} 28. Bb4 {[%emt 0:01:00]} Qc6 {[%emt 0:00:16]} 29. Bxf8 {[%emt 0:00:37]} Nxf8 {[%emt 0:00:22]} 30. f3 {[%emt 0:00:29]} g6 {[%emt 0:02:03]} 31. Be4 {[%emt 0:00:25]} Qb6+ {[%emt 0:00:11]} 32. Rf2 {[%emt 0:00:21]} Qb1+ {[%emt 0:00:19]} 33. Rf1 {[%emt 0:00:16]} Qb6+ {[%emt 0:00:06]} 34. Kh1 {[%emt 0:00:13]} Bxe4 {[%emt 0:00:10]} 35. Qxe4 {[%emt 0:00:18]} Qa6 {[%emt 0:00:13]} 36. Ra1 {[%emt 0:00:50]} 1/2-1/2

[Event "DVM U10 2024"]
[Site "Duesseldorf"]
[Date "2024.12.28"]
[Round "6"]
[White "Glaser-Gallion, Leonas"]
[Black "Pohlmann, Johannes Leon"]
[Result "0-1"]
[ECO "B30"]
[WhiteElo "1000"]
[BlackElo "1127"]
[Annotator "NA"]
[PlyCount "112"]
[EventDate "2024.12.23"]
[EventType "team-tourn"]
[EventRounds "7"]
[EventCountry "GER"]
[SourceTitle "playchess.com"]
[Source "ChessBase"]
[SourceQuality "1"]
[TimeControl "3300+5"]

1. e4 {[%emt 0:00:01]} c5 {[%emt 0:00:05]} 2. Nf3 {[%emt 0:00:07]} e6 {[%emt 0:00:07]} 3. Bc4 {[%emt 0:00:19]} a6 {[%emt 0:00:32]} 4. Nc3 {[%emt 0:00:10]} Nc6 {[%emt 0:00:34]} 5. d3 {[%emt 0:00:30]} h6 {[%emt 0:00:19]} 6. Bf4 {[%emt 0:00:13]} d6 {[%emt 0:00:18]} 7. O-O {[%emt 0:00:40]} Nf6 {[%emt 0:00:57]} 8. e5 {[%emt 0:00:43]} dxe5 {[%emt 0:01:33]} 9. Nxe5 {[%emt 0:00:21]} Nxe5 {[%emt 0:00:16]} 10. Bxe5 {[%emt 0:00:08]} Be7 {[%emt 0:00:13]} 11. Qf3 {[%emt 0:00:48]} O-O {[%emt 0:01:40]} 12. Qg3 {[%emt 0:00:42]} Bd7 {[%emt 0:02:16]} 13. Ne4 {[%emt 0:00:17]} Bc6 {[%emt 0:01:24]} 14. c3 {[%emt 0:02:55]} Kh7 {[%emt 0:03:28]} 15. a3 {[%emt 0:00:44]} Rg8 {[%emt 0:01:03]} 16. Rfd1 {[%emt 0:00:56]} Qf8 {[%emt 0:02:19]} 17. b4 {[%emt 0:00:23]} cxb4 {[%emt 0:00:46]} 18. axb4 {[%emt 0:00:09]} Nxe4 {[%emt 0:00:51]} 19. dxe4 {[%emt 0:00:11]} Bxe4 {[%emt 0:00:57]} 20. Bd3 {[%emt 0:02:10]} Bxd3 {[%emt 0:00:48]} 21. Rxd3 {[%emt 0:00:11]} Rd8 {[%emt 0:01:00]} 22. Rf3 {[%emt 0:02:35]} Bd6 {[%emt 0:00:48]} 23. Bxd6 {[%emt 0:01:06]} Qxd6 {[%emt 0:00:11]} 24. h3 {[%emt 0:01:06]} Qxg3 {[%emt 0:00:42]} 25. Rxg3 {[%emt 0:00:10]} Rc8 {[%emt 0:00:37]} 26. Rd1 {[%emt 0:00:36]} Rgd8 {[%emt 0:01:26]} 27. Rxd8 {[%emt 0:00:50]} Rxd8 {[%emt 0:00:13]} 28. Rf3 {[%emt 0:00:27]} Kg8 {[%emt 0:00:41]} 29. Kh2 {[%emt 0:00:13]} Rd5 {[%emt 0:02:36]} 30. Kg3 {[%emt 0:00:22]} Rg5+ {[%emt 0:00:37]} 31. Kh4 {[%emt 0:00:14]} Rxg2 {[%emt 0:00:45]} 32. Kh5 {[%emt 0:00:45]} Rg5+ {[%emt 0:00:30]} 33. Kh4 {[%emt 0:00:11]} Kf8 {[%emt 0:01:45]} 34. Rg3 {[%emt 0:00:17]} Rxg3 {[%emt 0:00:58]} 35. Kxg3 {[%emt 0:00:10]} Ke7 {[%emt 0:00:07]} 36. Kf4 {[%emt 0:00:14]} Kd6 {[%emt 0:01:07]} 37. Ke4 {[%emt 0:00:25]} e5 {[%emt 0:00:23]} 38. Kd3 {[%emt 0:00:09]} Kd5 {[%emt 0:00:34]} 39. c4+ {[%emt 0:00:29]} Kd6 {[%emt 0:00:15]} 40. Ke4 {[%emt 0:00:21]} Ke6 {[%emt 0:00:41]} 41. f4 {[%emt 0:00:31]} f5+ {[%emt 0:00:28]} 42. Ke3 {[%emt 0:00:19]} exf4+ {[%emt 0:00:21]} 43. Kxf4 {[%emt 0:00:12]} Kf6 {[%emt 0:00:05]} 44. h4 {[%emt 0:00:23]} g5+ {[%emt 0:00:15]} 45. hxg5+ {[%emt 0:00:12]} hxg5+ {[%emt 0:00:11]} 46. Kg3 {[%emt 0:00:17]} f4+ {[%emt 0:00:23]} 47. Kg4 {[%emt 0:00:27]} Kg6 {[%emt 0:00:21]} 48. c5 {[%emt 0:00:16]} Kf6 {[%emt 0:00:41]} 49. Kf3 {[%emt 0:00:17]} Kf5 {[%emt 0:00:20]} 50. Kg2 {[%emt 0:00:09]} g4 {[%emt 0:00:29]} 51. Kf2 {[%emt 0:00:14]} f3 {[%emt 0:00:28]} 52. Kf1 {[%emt 0:00:15]} Kf4 {[%emt 0:00:10]} 53. Kf2 {[%emt 0:00:07]} g3+ {[%emt 0:00:11]} 54. Kf1 {[%emt 0:00:10]} f2 {[%emt 0:00:30]} 55. c6 {[%emt 0:00:35]} Kf3 {[%emt 0:00:21]} 56. cxb7 {[%emt 0:00:54]} g2# {[%emt 0:00:11]} 0-1